{"text_format":"2","workbook":"xlsx","n_sheets":2,"sheets":["1. részajánlati kör","2. részajánlati kör"],"not_rendered":{"charts":0,"images":0,"macros":0,"external_links":0,"defined_names":0,"comments":0,"pivot_tables":0},"unopened":[],"bounds":{"document_bytes":16777216,"sheet_cells":100000,"run_cost":"one","rows_first":2000,"rows_last":500,"rows_between":2000,"halvings":0,"cell_chars":16384,"cell_head_chars":4096},"cells_cut":0,"cells_raw":0,"read":"whole","date_system":"1900"}

{"sheet":"1. részajánlati kör","index":0,"n_rows":81,"n_cols":3,"rows_kept":81,"cut":false,"hidden":false,"merged":[[0,0,0,2]]}
["1. részajánlati kör"]
["Megnevezés","Mennyiség","Mennyiségi egység"]
["ApexCal 2x2,5gr+15db kanül",3,"csomag"]
["Borszeszégőhöz kanóc kb. 15cm",4,"db"]
["DMG Honigum Mixstar Mono keverőkanül",1,"csomag"]
["Endo öblítő kanül 0,3mmx23mm sárga 100db/doboz ",25,"doboz"]
["Endo Stop Polydentia 5303 100db/csomag",18,"csomag"]
["Kaltespray",72,"db"]
["Endomethasone por+folyadék",5,"db"]
["Extra hosszú reamer 31mm tágító tű 15-40 6db/doboz",18,"doboz"]
["Extra hosszú reamer 31mm tágító tű 45-80 6db/doboz",2,"doboz"]
["Fuji I set cement + folyadék 3x35g+3x20ml",1,"csomag"]
["Gates Gilden 1-es (6db/cs)",5,"csomag"]
["Gates Gilden 2-es (6db/cs)",5,"csomag"]
["Gates Gilden 4-es (6db/cs)",5,"csomag"]
["Gipszkés",2,"db"]
["Glassix set +18 fúró",1,"db"]
["Glyde intropack  A0902",6,"csomag"]
["Harvard cement CC Polycarb. Por 100gr gyors",2,"db"]
["Harvard cement CC Polycarb.  folyadék 40ml gyors",2,"db"]
["Hedström reszelő 15 25mm (6db/doboz)",16,"doboz"]
["Hedström reszelő 15-40 25mm(6db/doboz)",3,"doboz"]
["Hedström reszelő 20 25mm(6db/doboz)",20,"doboz"]
["Hedström reszelő 25 25mm(6db/doboz)",8,"doboz"]
["Hedström reszelő 30 25mm(6db/doboz)",7,"doboz"]
["Hedström reszelő 35 25mm(6db/doboz)",7,"doboz"]
["Hedström reszelő 40 25mm(6db/doboz)",7,"doboz"]
["Hedström reszelő 45 25mm(6db/doboz)",5,"doboz"]
["Hedström reszelő 50 25mm(6db/doboz)",5,"doboz"]
["Hedström reszelő 55 25mm(6db/doboz)",5,"doboz"]
["Hedström reszelő 60 25mm(6db/doboz)",5,"doboz"]
["Hedström reszelő 45-80 25mm(6db/doboz)",2,"doboz"]
["Hedström reszelő 15-40 extra hosszú 31mm(6db/doboz)",3,"doboz"]
["Hedström reszelő 45-80 extra hosszú 31mm(6db/doboz)",4,"doboz"]
["Kerr Finger Spreader 15 (6db/doboz)",5,"doboz"]
["Kerr Finger Spreader 20 (6db/doboz)",5,"doboz"]
["Kerr Finger Spreader 25 (6db/doboz)",5,"doboz"]
["Kerr Finger Spreader 30 (6db/doboz)",5,"doboz"]
["K-file Maillefer 006 (6db/doboz)",15,"doboz"]
["K-file Maillefer 008 (6db/doboz)",15,"doboz"]
["K-file Maillefer 010 (6db/doboz)",15,"doboz"]
["Kofferdám kapcsok 3052-0",10,"db"]
["Kofferdám kapcsok 3052-00",20,"db"]
["Kofferdám kapcsok 3052-1",10,"db"]
["Kofferdám kapcsok 3052-14",10,"db"]
["Kofferdám kapcsok 3052-14T",10,"db"]
["Kofferdám kapcsok 3052-2",10,"db"]
["Kofferdám kapcsok 3052-2A",10,"db"]
["Koronafeltáró Dentech DP1779 + 6db betét",1,"db"]
["Kötszer olló 18cm",1,"db"]
["NiTi Flex 15 (6db/doboz)",21,"doboz"]
["NiTi Flex 15-40 (6db/doboz)",46,"doboz"]
["NiTi Flex 20 (6db/doboz)",5,"doboz"]
["NiTi Flex 25 (6db/doboz)",8,"doboz"]
["NiTi Flex 30 (6db/doboz)",8,"doboz"]
["NiTi Flex 35 (6db/doboz)",8,"doboz"]
["NiTi Flex 40 (6db/doboz)",8,"doboz"]
["NiTi Flex 45 (6db/doboz)",13,"doboz"]
["NiTi Flex 50 (6db/doboz)",13,"doboz"]
["NiTi Flex 55 (6db/doboz)",10,"doboz"]
["NiTi Flex 60 (6db/doboz)",12,"doboz"]
["Nordin Glassix üvegszálas csap 1mm",6,"doboz"]
["Oxasil Activator paszta 60ml",33,"db"]
["Oxasil Soft Putty 900ml",32,"db"]
["Reamer tágító tű 15 6db/doboz",14,"doboz"]
["Reamer tágító tű 20 6db/doboz",4,"doboz"]
["Reamer tágító tű 25 6db/doboz",4,"doboz"]
["Reamer tágító tű 30 6db/doboz",2,"doboz"]
["Reamer tágító tű 35 6db/doboz",2,"doboz"]
["Reamer tágító tű 40 6db/doboz",2,"doboz"]
["Reamer tágító tű 45-80 6db/doboz",2,"doboz"]
["Impregnált retrakciós fonál 0",6,"db"]
["Impregnált retrakciós fonál 00",9,"db"]
["Impregnált retrakciós fonál 000",4,"db"]
["Tena Bib nyálkendő S/M 150db/csomag",60,"csomag"]
["Tor 1.099/6 rögzítő gyűrű szekcionált matricákhoz",10,"db"]
["Tor Sectional Contoured Matrices No 1.0972 50db/csomag",6,"doboz"]
["Tor Sectional Contoured Matrices No 1.0973 50db/csomag",18,"doboz"]
["Tor Sectional Contoured Matrices No 1.0975 50db/csomag",6,"doboz"]
["Tor Sectional Contoured Matrices No 1.0976 50db/csomag",18,"doboz"]
["Vastagságmérő ASA2550-1",1,"db"]

{"sheet":"2. részajánlati kör","index":1,"n_rows":22,"n_cols":5,"rows_kept":22,"cut":false,"hidden":false,"merged":[[0,0,0,2]]}
["2. részajánlati kör"]
["Megnevezés","Mennyiség","Mennyiségi egység"]
["ASA 0903-1 cement keverő spatula",1,"db",2589.3000000000002,{"$f":"B3*D3","v":2589.3000000000002}]
["ASA 1102-1 Heidemann spatula",2,"db",2373.3000000000002,{"$f":"B4*D4","v":4746.6000000000004}]
["ASA 1102-2 Heidemann spatula",2,"db",2373.3000000000002,4746.6000000000004]
["ASA 1102T-2 Heidemann spatula",2,"db",8247.6,16495.2]
["ASA 0483-3 fém fecskendő",3,"db",9806.4,29419.199999999997]
["ASA 0215-301 gyökéremelő",1,"db",7480.8,7480.8]
["ASA 0217-40 gyökéremelő",1,"doboz",7480.8,7480.8]
["ASA 0230-11M gyökéremelő",1,"db",7480.8,7480.8]
["ASA 0240-2 gyökéremelő",2,"db",7480.8,14961.6]
["ASA 0306-1 olló",2,"db",8631,17262]
["ASA 0309-1 olló",1,"db",7648,7648]
["ASA S0110 foghúzó fogó gyerekeknek",1,"db",135032.4,135032.4]
["Mandrell Sof-lex 8695CA",2,"db",7731,15462]
["Mandrell CA0439 Super-Snap 6db/doboz",2,"doboz",6600,13200]
["Nyálkendő papír+műanyag 60db 53x80",90,"csomag",1751,157590]
["Oral B Satin Floss fogselyem",60,"db",650,39000]
["Polírozó csík gyémánt PFXDS2 10db/csomag",1,"csomag",12294,12294]
["Strilich koronalevevő DP1780",1,"db",18000,18000]
["Sterilizálható hűtőfolyadék-tömlő szerelék WH Implantmotorhoz ",5,"db",29000,145000]
[{"$nulls":4},{"$f":"SUM(E3:E21)","v":655889.30000000005}]